[Event "Titled Tuesday Blitz June 07 Early 2022"]
[White "Omariev, Maksim"]
[Black "Large, Peter G"]
[WhiteFideId "4193423"]
[BlackFideId "400866"]
[WhiteElo "2523"]
[BlackElo "2064"]
[Result "0-1"]
[Round "03"]
[TimeControl "180+1"]
[Date "2022.06.08"]
[WhiteClock "0:00:05"]
[BlackClock "0:00:16"]

1. e4 {[%clk 0:03:00]}  e6 {[%clk 0:02:59]} 2. d4 {[%clk 0:03:00]}  d5 {[%clk 0:03:00]} 3. Nc3 {[%clk 0:03:00]}  dxe4 {[%clk 0:02:59]} 4. Nxe4 {[%clk 0:03:01]}  Bd7 {[%clk 0:03:00]} 5. Bd3 {[%clk 0:02:51]}  Bc6 {[%clk 0:03:00]} 6. Nf3 {[%clk 0:02:51]}  Nd7 {[%clk 0:03:00]} 7. Qe2 {[%clk 0:02:51]}  Ngf6 {[%clk 0:03:00]} 8. Neg5 {[%clk 0:02:49]}  Bd6 {[%clk 0:02:58]} 9. Nxf7 {[%clk 0:02:39]}  Kxf7 {[%clk 0:02:57]} 10. Ng5+ {[%clk 0:02:40]}  Ke8 {[%clk 0:02:53]} 11. O-O {[%clk 0:01:45]}  Nf8 {[%clk 0:02:48]} 12. c4 {[%clk 0:01:42]}  h6 {[%clk 0:02:34]} 13. Nxe6 {[%clk 0:01:26]}  Nxe6 {[%clk 0:02:33]} 14. Qxe6+ {[%clk 0:01:24]}  Qe7 {[%clk 0:02:34]} 15. Qh3 {[%clk 0:01:15]}  Bd7 {[%clk 0:01:52]} 16. Bg6+ {[%clk 0:01:14]}  Kd8 {[%clk 0:01:50]} 17. Qb3 {[%clk 0:01:14]}  b6 {[%clk 0:01:37]} 18. c5 {[%clk 0:00:54]}  bxc5 {[%clk 0:01:35]} 19. dxc5 {[%clk 0:00:52]}  Bxc5 {[%clk 0:01:31]} 20. Qb7 {[%clk 0:00:38]}  Rc8 {[%clk 0:01:19]} 21. Bf4 {[%clk 0:00:38]}  Bd6 {[%clk 0:01:16]} 22. Rfe1 {[%clk 0:00:35]}  Bxf4 {[%clk 0:01:05]} 23. Rxe7 {[%clk 0:00:34]}  Kxe7 {[%clk 0:01:06]} 24. Re1+ {[%clk 0:00:32]}  Kd8 {[%clk 0:01:06]} 25. Qxa7 {[%clk 0:00:28]}  Bd6 {[%clk 0:01:00]} 26. a4 {[%clk 0:00:21]}  Bc6 {[%clk 0:00:58]} 27. Qd4 {[%clk 0:00:19]}  Rf8 {[%clk 0:00:50]} 28. a5 {[%clk 0:00:16]}  Rb8 {[%clk 0:00:46]} 29. a6 {[%clk 0:00:14]}  Rb4 {[%clk 0:00:42]} 30. Qc3 {[%clk 0:00:05]}  Bd5 {[%clk 0:00:27]} 31. Rd1 {[%clk 0:00:04]}  Ra4 {[%clk 0:00:24]} 32. Qd3 {[%clk 0:00:02]}  Kd7 {[%clk 0:00:17]} 33. b3 {[%clk 0:00:03]}  Ra2 {[%clk 0:00:17]} 34. Qd4 {[%clk 0:00:03]}  Kc6 {[%clk 0:00:15]} 35. Bd3 {[%clk 0:00:03]}  Re8 {[%clk 0:00:14]} 36. Bc4 {[%clk 0:00:03]}  Re5 {[%clk 0:00:13]} 37. Bxd5+ {[%clk 0:00:02]}  Rxd5 {[%clk 0:00:14]} 38. Qc4+ {[%clk 0:00:03]}  Kd7 {[%clk 0:00:14]} 39. Rf1 {[%clk 0:00:02]}  Rc5 {[%clk 0:00:14]} 40. Qd3 {[%clk 0:00:02]}  Rca5 {[%clk 0:00:14]} 41. b4 {[%clk 0:00:01]}  Rxa6 {[%clk 0:00:14]} 42. g3 {[%clk 0:00:01]}  R6a3 {[%clk 0:00:14]} 43. Qf5+ {[%clk 0:00:02]}  Kc6 {[%clk 0:00:13]} 44. b5+ {[%clk 0:00:01]}  Kb6 {[%clk 0:00:14]} 45. Rc1 {[%clk 0:00:02]}  Ra1 {[%clk 0:00:13]} 46. Rxa1 {[%clk 0:00:02]}  Rxa1+ {[%clk 0:00:13]} 47. Kg2 {[%clk 0:00:03]}  Ra5 {[%clk 0:00:14]} 48. Qg6 {[%clk 0:00:03]}  Rxb5 {[%clk 0:00:14]} 49. Qxg7 {[%clk 0:00:03]}  Be5 {[%clk 0:00:15]} 50. Qxh6 {[%clk 0:00:03]}  c5 {[%clk 0:00:15]} 51. Qf8 {[%clk 0:00:03]}  Bd4 {[%clk 0:00:14]} 52. Qd8+ {[%clk 0:00:03]}  Kc6 {[%clk 0:00:14]} 53. h4 {[%clk 0:00:03]}  c4 {[%clk 0:00:14]} 54. Qc8+ {[%clk 0:00:02]}  Kd5 {[%clk 0:00:14]} 55. Qf5+ {[%clk 0:00:03]}  Kc6 {[%clk 0:00:14]} 56. Qe6+ {[%clk 0:00:03]}  Kc5 {[%clk 0:00:14]} 57. g4 {[%clk 0:00:04]}  c3 {[%clk 0:00:14]} 58. g5 {[%clk 0:00:04]}  Nd5 {[%clk 0:00:14]} 59. Qc8+ {[%clk 0:00:04]}  Kb4 {[%clk 0:00:14]} 60. g6 {[%clk 0:00:04]}  Rc5 {[%clk 0:00:14]} 61. Qb7+ {[%clk 0:00:04]}  Kc4 {[%clk 0:00:14]} 62. Qb1 {[%clk 0:00:03]}  Nf4+ {[%clk 0:00:13]} 63. Kf3 {[%clk 0:00:03]}  Nd3 {[%clk 0:00:13]} 64. Qf1 {[%clk 0:00:02]}  c2 {[%clk 0:00:13]} 65. Ke4 {[%clk 0:00:03]}  c1=Q {[%clk 0:00:13]} 66. Qxd3+ {[%clk 0:00:03]}  Kb4 {[%clk 0:00:13]} 67. Qxd4+ {[%clk 0:00:04]}  Rc4 {[%clk 0:00:13]} 68. Qxc4+ {[%clk 0:00:03]}  Qxc4+ {[%clk 0:00:13]} 69. Kf5 {[%clk 0:00:04]}  Qxh4 {[%clk 0:00:13]} 70. Ke6 {[%clk 0:00:04]}  Qxf2 {[%clk 0:00:13]} 71. g7 {[%clk 0:00:03]}  Qe3+ {[%clk 0:00:14]} 72. Kf7 {[%clk 0:00:04]}  Qf4+ {[%clk 0:00:14]} 73. Ke8 {[%clk 0:00:04]}  Qe5+ {[%clk 0:00:14]} 74. Kf8 {[%clk 0:00:04]}  Qf5+ {[%clk 0:00:15]} 75. Ke7 {[%clk 0:00:04]}  Qg6 {[%clk 0:00:15]} 76. Kf8 {[%clk 0:00:04]}  Qf6+ {[%clk 0:00:16]} 77. Kg8 {[%clk 0:00:04]}  Kc5 {[%clk 0:00:16]} 78. Kh7 {[%clk 0:00:04]}  Qh4+ {[%clk 0:00:16]} 79. Kg6 {[%clk 0:00:04]}  Qg4+ {[%clk 0:00:17]} 80. Kh6 {[%clk 0:00:04]}  Kd6 {[%clk 0:00:16]} 81. Kh7 {[%clk 0:00:05]}  Qh5+ {[%clk 0:00:16]} 82. Kg8 {[%clk 0:00:05]}  Ke6 {[%clk 0:00:16]} 83. Kf8 {[%clk 0:00:05]}  Qf7# {[%clk 0:00:16]} 0-1


[Site "https://www.chess.com"]

[Event "Titled Tuesday Blitz June 07 Early 2022"]
[White "Papasimakopoulos, Alexandros"]
[Black "Kamsky, Gata"]
[WhiteFideId "4244125"]
[BlackFideId "2000024"]
[WhiteElo "2340"]
[BlackElo "2645"]
[Result "1/2-1/2"]
[Round "03"]
[TimeControl "180+1"]
[Date "2022.06.07"]
[WhiteClock "0:00:34"]
[BlackClock "0:00:11"]

1. d4 {[%clk 0:03:00]}  d5 {[%clk 0:02:56]} 2. c4 {[%clk 0:03:01]}  c6 {[%clk 0:02:55]} 3. cxd5 {[%clk 0:03:01]}  cxd5 {[%clk 0:02:55]} 4. Bf4 {[%clk 0:03:01]}  Nf6 {[%clk 0:02:53]} 5. Nc3 {[%clk 0:03:01]}  Nc6 {[%clk 0:02:52]} 6. e3 {[%clk 0:03:02]}  a6 {[%clk 0:02:50]} 7. Bd3 {[%clk 0:03:01]}  Bg4 {[%clk 0:02:33]} 8. Nge2 {[%clk 0:03:01]}  e6 {[%clk 0:02:32]} 9. Rc1 {[%clk 0:03:00]}  Bd6 {[%clk 0:02:28]} 10. f3 {[%clk 0:03:01]}  Bh5 {[%clk 0:02:28]} 11. O-O {[%clk 0:03:01]}  O-O {[%clk 0:02:26]} 12. Na4 {[%clk 0:03:01]}  Bg6 {[%clk 0:02:08]} 13. Nc5 {[%clk 0:03:01]}  Bxc5 {[%clk 0:02:05]} 14. Rxc5 {[%clk 0:03:00]}  Nh5 {[%clk 0:01:52]} 15. Bxg6 {[%clk 0:02:54]}  hxg6 {[%clk 0:01:51]} 16. Qb3 {[%clk 0:02:54]}  Nxf4 {[%clk 0:01:44]} 17. Nxf4 {[%clk 0:02:53]}  Na5 {[%clk 0:01:31]} 18. Qc3 {[%clk 0:01:58]}  b6 {[%clk 0:01:28]} 19. Rc7 {[%clk 0:01:53]}  Nc4 {[%clk 0:01:28]} 20. Rxc4 {[%clk 0:01:48]}  dxc4 {[%clk 0:01:27]} 21. Qxc4 {[%clk 0:01:49]}  Qd7 {[%clk 0:01:24]} 22. Nd3 {[%clk 0:01:42]}  Rfc8 {[%clk 0:01:23]} 23. Qb3 {[%clk 0:01:41]}  Qb5 {[%clk 0:01:22]} 24. Qxb5 {[%clk 0:01:40]}  axb5 {[%clk 0:01:22]} 25. Nb4 {[%clk 0:01:40]}  g5 {[%clk 0:01:19]} 26. a3 {[%clk 0:01:38]}  Rc4 {[%clk 0:01:18]} 27. Kf2 {[%clk 0:01:38]}  Rac8 {[%clk 0:01:17]} 28. Re1 {[%clk 0:01:34]}  Kf8 {[%clk 0:01:15]} 29. Re2 {[%clk 0:01:34]}  Ke7 {[%clk 0:01:14]} 30. Rd2 {[%clk 0:01:34]}  Kd6 {[%clk 0:01:12]} 31. e4 {[%clk 0:01:34]}  f6 {[%clk 0:01:00]} 32. h3 {[%clk 0:01:33]}  Ke7 {[%clk 0:00:45]} 33. d5 {[%clk 0:01:28]}  e5 {[%clk 0:00:36]} 34. Ke3 {[%clk 0:01:19]}  Kd6 {[%clk 0:00:36]} 35. Nc6 {[%clk 0:01:17]}  Ra8 {[%clk 0:00:31]} 36. Nb4 {[%clk 0:01:14]}  Rc1 {[%clk 0:00:29]} 37. Kf2 {[%clk 0:01:06]}  Rc4 {[%clk 0:00:28]} 38. Ke3 {[%clk 0:01:04]}  Rc1 {[%clk 0:00:28]} 39. Kf2 {[%clk 0:01:04]}  Rc4 {[%clk 0:00:25]} 40. Kg3 {[%clk 0:01:03]}  Rac8 {[%clk 0:00:22]} 41. Nc6 {[%clk 0:01:02]}  Rh8 {[%clk 0:00:19]} 42. Kg4 {[%clk 0:01:00]}  g6 {[%clk 0:00:19]} 43. Kg3 {[%clk 0:00:59]}  Kd7 {[%clk 0:00:17]} 44. Na7 {[%clk 0:00:54]}  b4 {[%clk 0:00:17]} 45. Nc6 {[%clk 0:00:45]}  bxa3 {[%clk 0:00:15]} 46. bxa3 {[%clk 0:00:46]}  Ra8 {[%clk 0:00:15]} 47. Rb2 {[%clk 0:00:45]}  Kc7 {[%clk 0:00:15]} 48. Rb3 {[%clk 0:00:39]}  Rca4 {[%clk 0:00:15]} 49. Rc3 {[%clk 0:00:35]}  Rxa3 {[%clk 0:00:14]} 50. Rc1 {[%clk 0:00:36]}  Kd7 {[%clk 0:00:14]} 51. Rb1 {[%clk 0:00:34]}  Kc7 {[%clk 0:00:14]} 52. Rc1 {[%clk 0:00:34]}  Kd6 {[%clk 0:00:14]} 53. Rb1 {[%clk 0:00:34]}  Kc7 {[%clk 0:00:11]} 54. Rc1 {[%clk 0:00:34]} 1/2-1/2


[Site "https://www.chess.com"]

[Event "Titled Tuesday Blitz June 07 Early 2022"]
[White "Paravyan, David"]
[Black "Gong, Patrick"]
[WhiteFideId "4194985"]
[BlackFideId "3222500"]
[WhiteElo "2569"]
[BlackElo "2103"]
[Result "1-0"]
[Round "03"]
[TimeControl "180+1"]
[Date "2022.06.07"]
[WhiteClock "0:00:29"]
[BlackClock "0:00:01"]

1. e4 {[%clk 0:02:43]}  d6 {[%clk 0:02:57]} 2. d4 {[%clk 0:02:43]}  Nf6 {[%clk 0:02:56]} 3. Nc3 {[%clk 0:02:43]}  g6 {[%clk 0:02:55]} 4. Nf3 {[%clk 0:02:42]}  Bg7 {[%clk 0:02:54]} 5. Bg5 {[%clk 0:02:43]}  h6 {[%clk 0:02:53]} 6. Be3 {[%clk 0:02:41]}  a6 {[%clk 0:02:53]} 7. Qd2 {[%clk 0:02:41]}  b5 {[%clk 0:02:52]} 8. Bd3 {[%clk 0:02:36]}  Bb7 {[%clk 0:02:51]} 9. a3 {[%clk 0:02:35]}  Nbd7 {[%clk 0:02:48]} 10. e5 {[%clk 0:02:36]}  Ng4 {[%clk 0:02:34]} 11. e6 {[%clk 0:02:35]}  Ndf6 {[%clk 0:02:32]} 12. exf7+ {[%clk 0:02:34]}  Kxf7 {[%clk 0:02:33]} 13. Nh4 {[%clk 0:02:33]}  g5 {[%clk 0:02:28]} 14. Bg6+ {[%clk 0:02:26]}  Kg8 {[%clk 0:02:19]} 15. Nf5 {[%clk 0:02:25]}  e6 {[%clk 0:02:19]} 16. Nxg7 {[%clk 0:02:07]}  Kxg7 {[%clk 0:02:20]} 17. Bd3 {[%clk 0:02:08]}  e5 {[%clk 0:02:02]} 18. O-O-O {[%clk 0:02:04]}  Nxe3 {[%clk 0:01:54]} 19. fxe3 {[%clk 0:02:03]}  Qe7 {[%clk 0:01:45]} 20. h4 {[%clk 0:01:27]}  g4 {[%clk 0:01:23]} 21. Bf5 {[%clk 0:01:23]}  Rhe8 {[%clk 0:01:08]} 22. Rhe1 {[%clk 0:01:17]}  c5 {[%clk 0:00:59]} 23. dxc5 {[%clk 0:01:10]}  dxc5 {[%clk 0:00:59]} 24. Ne2 {[%clk 0:01:06]}  Rad8 {[%clk 0:00:49]} 25. Qa5 {[%clk 0:01:04]}  Bxg2 {[%clk 0:00:43]} 26. Ng3 {[%clk 0:01:03]}  Rxd1+ {[%clk 0:00:29]} 27. Rxd1 {[%clk 0:01:02]}  Bf3 {[%clk 0:00:29]} 28. Rd2 {[%clk 0:00:53]}  e4 {[%clk 0:00:25]} 29. Bd7 {[%clk 0:00:45]}  Qe5 {[%clk 0:00:15]} 30. Nf5+ {[%clk 0:00:44]}  Kh8 {[%clk 0:00:15]} 31. Bxe8 {[%clk 0:00:37]}  Qxf5 {[%clk 0:00:10]} 32. Qd8 {[%clk 0:00:36]}  Ng8 {[%clk 0:00:06]} 33. Rd7 {[%clk 0:00:29]}  g3 {[%clk 0:00:03]} 34. Bf7 {[%clk 0:00:29]}  Qg4 {[%clk 0:00:01]} 35. Bxg8 {[%clk 0:00:28]}  Qxg8 {[%clk 0:00:01]} 36. Qf6+ {[%clk 0:00:29]} 1-0


[Site "https://www.chess.com"]

[Event "Titled Tuesday Blitz June 07 Early 2022"]
[White "Putri, Regita Desyari"]
[Black "Mikhailovsky, Vladimir"]
[WhiteFideId "7109083"]
[BlackFideId "34105414"]
[WhiteElo "1930"]
[BlackElo "2270"]
[Result "0-1"]
[Round "03"]
[TimeControl "180+1"]
[Date "2022.06.08"]
[WhiteClock "0:00:03"]
[BlackClock "0:00:09"]

1. d4 {[%clk 0:02:57]}  d5 {[%clk 0:02:56]} 2. Nf3 {[%clk 0:02:58]}  Nf6 {[%clk 0:02:56]} 3. Bf4 {[%clk 0:02:55]}  e6 {[%clk 0:02:53]} 4. e3 {[%clk 0:02:56]}  Bd6 {[%clk 0:02:54]} 5. Nbd2 {[%clk 0:02:55]}  c5 {[%clk 0:02:54]} 6. c3 {[%clk 0:02:55]}  Qc7 {[%clk 0:02:54]} 7. Bg3 {[%clk 0:02:48]}  O-O {[%clk 0:02:53]} 8. Bd3 {[%clk 0:02:41]}  Nbd7 {[%clk 0:02:52]} 9. O-O {[%clk 0:02:41]}  Bxg3 {[%clk 0:02:50]} 10. hxg3 {[%clk 0:02:41]}  e5 {[%clk 0:02:51]} 11. dxe5 {[%clk 0:02:40]}  Nxe5 {[%clk 0:02:52]} 12. Nxe5 {[%clk 0:02:40]}  Qxe5 {[%clk 0:02:53]} 13. Nf3 {[%clk 0:02:38]}  Qe7 {[%clk 0:02:43]} 14. c4 {[%clk 0:02:32]}  Be6 {[%clk 0:02:35]} 15. Qc2 {[%clk 0:02:29]}  Rfd8 {[%clk 0:02:31]} 16. Rac1 {[%clk 0:02:20]}  b6 {[%clk 0:02:31]} 17. Rfe1 {[%clk 0:02:11]}  g6 {[%clk 0:02:30]} 18. a3 {[%clk 0:01:51]}  Rd7 {[%clk 0:02:27]} 19. cxd5 {[%clk 0:01:42]}  Bxd5 {[%clk 0:02:07]} 20. e4 {[%clk 0:01:35]}  Be6 {[%clk 0:01:54]} 21. Bb5 {[%clk 0:01:29]}  Rdd8 {[%clk 0:01:48]} 22. Ne5 {[%clk 0:01:19]}  Qc7 {[%clk 0:01:35]} 23. Qc3 {[%clk 0:01:13]}  Nd7 {[%clk 0:01:06]} 24. Nc6 {[%clk 0:00:45]}  Re8 {[%clk 0:01:02]} 25. Nd4 {[%clk 0:00:36]}  Rad8 {[%clk 0:00:54]} 26. Nxe6 {[%clk 0:00:34]}  Rxe6 {[%clk 0:00:54]} 27. Bc4 {[%clk 0:00:32]}  Re7 {[%clk 0:00:51]} 28. f4 {[%clk 0:00:32]}  Nb8 {[%clk 0:00:46]} 29. Bd5 {[%clk 0:00:26]}  Qd7 {[%clk 0:00:42]} 30. Rf1 {[%clk 0:00:20]}  Nc6 {[%clk 0:00:39]} 31. Qf6 {[%clk 0:00:18]}  Nd4 {[%clk 0:00:37]} 32. Rcd1 {[%clk 0:00:17]}  Qd6 {[%clk 0:00:15]} 33. Qxd6 {[%clk 0:00:12]}  Rxd6 {[%clk 0:00:16]} 34. Kh2 {[%clk 0:00:12]}  Kg7 {[%clk 0:00:16]} 35. g4 {[%clk 0:00:09]}  f6 {[%clk 0:00:16]} 36. f5 {[%clk 0:00:09]}  g5 {[%clk 0:00:15]} 37. Rf2 {[%clk 0:00:09]}  Re5 {[%clk 0:00:15]} 38. Kg3 {[%clk 0:00:09]}  h6 {[%clk 0:00:13]} 39. Rfd2 {[%clk 0:00:09]}  Rd8 {[%clk 0:00:13]} 40. Kf2 {[%clk 0:00:09]}  Re7 {[%clk 0:00:13]} 41. b4 {[%clk 0:00:09]}  Red7 {[%clk 0:00:07]} 42. bxc5 {[%clk 0:00:09]}  bxc5 {[%clk 0:00:07]} 43. Rd3 {[%clk 0:00:09]}  Rb8 {[%clk 0:00:06]} 44. Rc1 {[%clk 0:00:08]}  Rb2+ {[%clk 0:00:06]} 45. Kf1 {[%clk 0:00:07]}  Ne2 {[%clk 0:00:06]} 46. Rxc5 {[%clk 0:00:06]}  Nf4 {[%clk 0:00:06]} 47. Rg3 {[%clk 0:00:05]}  Rb1+ {[%clk 0:00:03]} 48. Kf2 {[%clk 0:00:05]}  Rb2+ {[%clk 0:00:04]} 49. Kf1 {[%clk 0:00:05]}  Rd2 {[%clk 0:00:04]} 50. Rc1 {[%clk 0:00:04]}  Nxd5 {[%clk 0:00:03]} 51. exd5 {[%clk 0:00:04]}  R2xd5 {[%clk 0:00:04]} 52. Rf3 {[%clk 0:00:04]}  Rd4 {[%clk 0:00:04]} 53. Rg3 {[%clk 0:00:04]}  h5 {[%clk 0:00:04]} 54. gxh5 {[%clk 0:00:04]}  Rf4+ {[%clk 0:00:04]} 55. Rf3 {[%clk 0:00:04]}  Rxf3+ {[%clk 0:00:04]} 56. gxf3 {[%clk 0:00:04]}  Rd5 {[%clk 0:00:05]} 57. Kf2 {[%clk 0:00:05]}  Rxf5 {[%clk 0:00:05]} 58. Rc7+ {[%clk 0:00:05]}  Kh6 {[%clk 0:00:06]} 59. Rxa7 {[%clk 0:00:05]}  Kxh5 {[%clk 0:00:07]} 60. a4 {[%clk 0:00:06]}  Rc5 {[%clk 0:00:05]} 61. a5 {[%clk 0:00:06]}  Kg6 {[%clk 0:00:06]} 62. a6 {[%clk 0:00:06]}  Kf5 {[%clk 0:00:06]} 63. Kg3 {[%clk 0:00:06]}  Rc3 {[%clk 0:00:07]} 64. Ra8 {[%clk 0:00:06]}  g4 {[%clk 0:00:07]} 65. a7 {[%clk 0:00:05]}  Rxf3+ {[%clk 0:00:08]} 66. Kg2 {[%clk 0:00:06]}  Ra3 {[%clk 0:00:08]} 67. Kf2 {[%clk 0:00:05]}  Kf4 {[%clk 0:00:08]} 68. Kg2 {[%clk 0:00:05]}  Ra2+ {[%clk 0:00:07]} 69. Kg1 {[%clk 0:00:06]}  f5 {[%clk 0:00:08]} 70. Kf1 {[%clk 0:00:04]}  Kf3 {[%clk 0:00:09]} 71. Ke1 {[%clk 0:00:04]}  f4 {[%clk 0:00:09]} 72. Kd1 {[%clk 0:00:02]}  g3 {[%clk 0:00:09]} 73. Kc1 {[%clk 0:00:02]}  g2 {[%clk 0:00:10]} 74. Kb1 {[%clk 0:00:03]}  Rxa7 {[%clk 0:00:09]} 75. Rxa7 {[%clk 0:00:03]}  g1=Q+ {[%clk 0:00:09]} 0-1


[Site "https://www.chess.com"]

[Event "Titled Tuesday Blitz June 07 Early 2022"]
[White "Rustemov, Alexander"]
[Black "De Souza, Cristiano Gomes"]
[WhiteFideId "4119002"]
[BlackFideId "2151758"]
[WhiteElo "2783"]
[BlackElo "2068"]
[Result "1-0"]
[Round "03"]
[TimeControl "180+1"]
[Date "2022.06.07"]
[WhiteClock "0:01:05"]
[BlackClock "0:00:11"]

1. d4 {[%clk 0:03:00]}  Nf6 {[%clk 0:02:59]} 2. c4 {[%clk 0:03:01]}  g6 {[%clk 0:02:58]} 3. Nf3 {[%clk 0:03:01]}  Bg7 {[%clk 0:02:58]} 4. g3 {[%clk 0:03:02]}  d6 {[%clk 0:02:58]} 5. Bg2 {[%clk 0:03:03]}  O-O {[%clk 0:02:58]} 6. Nc3 {[%clk 0:03:03]}  Nc6 {[%clk 0:02:59]} 7. O-O {[%clk 0:03:04]}  Bf5 {[%clk 0:02:55]} 8. Ne1 {[%clk 0:03:03]}  Qd7 {[%clk 0:02:54]} 9. e4 {[%clk 0:03:02]}  Bh3 {[%clk 0:02:53]} 10. f3 {[%clk 0:03:02]}  Bxg2 {[%clk 0:02:52]} 11. Kxg2 {[%clk 0:03:02]}  e5 {[%clk 0:02:50]} 12. d5 {[%clk 0:02:59]}  Ne7 {[%clk 0:02:44]} 13. Nd3 {[%clk 0:02:58]}  c6 {[%clk 0:02:44]} 14. Be3 {[%clk 0:02:57]}  cxd5 {[%clk 0:02:43]} 15. cxd5 {[%clk 0:02:56]}  a6 {[%clk 0:02:43]} 16. Na4 {[%clk 0:02:38]}  Nc8 {[%clk 0:02:41]} 17. Rc1 {[%clk 0:02:35]}  b5 {[%clk 0:02:41]} 18. Rxc8 {[%clk 0:02:19]}  Raxc8 {[%clk 0:02:33]} 19. Nb6 {[%clk 0:02:19]}  Qb7 {[%clk 0:02:33]} 20. Nxc8 {[%clk 0:02:19]}  Rxc8 {[%clk 0:02:32]} 21. Nb4 {[%clk 0:02:15]}  Nd7 {[%clk 0:02:20]} 22. Nc6 {[%clk 0:02:14]}  Nb8 {[%clk 0:02:19]} 23. Na7 {[%clk 0:02:07]}  Rc7 {[%clk 0:02:09]} 24. Qd2 {[%clk 0:02:02]}  Nd7 {[%clk 0:02:07]} 25. Rc1 {[%clk 0:01:59]}  Rxc1 {[%clk 0:01:56]} 26. Qxc1 {[%clk 0:01:59]}  Nb6 {[%clk 0:01:30]} 27. Qc6 {[%clk 0:01:48]}  Qxa7 {[%clk 0:01:27]} 28. Qxd6 {[%clk 0:01:42]}  Bf8 {[%clk 0:01:21]} 29. Qxb6 {[%clk 0:01:42]}  Qd7 {[%clk 0:01:14]} 30. Qxa6 {[%clk 0:01:36]}  f5 {[%clk 0:01:14]} 31. Qe6+ {[%clk 0:01:32]}  Qxe6 {[%clk 0:01:14]} 32. dxe6 {[%clk 0:01:32]}  fxe4 {[%clk 0:01:14]} 33. fxe4 {[%clk 0:01:31]}  Kg7 {[%clk 0:01:15]} 34. Bg5 {[%clk 0:01:30]}  Bd6 {[%clk 0:01:08]} 35. Kf3 {[%clk 0:01:23]}  h6 {[%clk 0:01:07]} 36. Bd8 {[%clk 0:01:23]}  Kf8 {[%clk 0:01:04]} 37. Bf6 {[%clk 0:01:20]}  h5 {[%clk 0:00:29]} 38. Ke2 {[%clk 0:01:19]}  Ke8 {[%clk 0:00:21]} 39. h3 {[%clk 0:01:16]}  Kf8 {[%clk 0:00:20]} 40. Kd3 {[%clk 0:01:16]}  Ke8 {[%clk 0:00:20]} 41. Kc2 {[%clk 0:01:16]}  Kf8 {[%clk 0:00:20]} 42. Kb3 {[%clk 0:01:15]}  Ke8 {[%clk 0:00:19]} 43. a4 {[%clk 0:01:15]}  bxa4+ {[%clk 0:00:19]} 44. Kxa4 {[%clk 0:01:15]}  Bc5 {[%clk 0:00:14]} 45. b4 {[%clk 0:01:12]}  Bf2 {[%clk 0:00:13]} 46. g4 {[%clk 0:01:12]}  hxg4 {[%clk 0:00:12]} 47. hxg4 {[%clk 0:01:12]}  Bd4 {[%clk 0:00:11]} 48. b5 {[%clk 0:01:08]}  Kf8 {[%clk 0:00:11]} 49. Ka5 {[%clk 0:01:07]}  Ke8 {[%clk 0:00:11]} 50. b6 {[%clk 0:01:05]} 1-0


[Site "https://www.chess.com"]

[Event "Titled Tuesday Blitz June 07 Early 2022"]
[White "Santos Ruiz, Miguel"]
[Black "Zlatin, Alexander"]
[WhiteFideId "22291482"]
[BlackFideId "2810549"]
[WhiteElo "2475"]
[BlackElo "2228"]
[Result "1-0"]
[Round "03"]
[TimeControl "180+1"]
[Date "2022.06.08"]
[WhiteClock "0:00:07"]
[BlackClock "0:00:02"]

1. Nf3 {[%clk 0:03:00]}  d5 {[%clk 0:02:59]} 2. c4 {[%clk 0:03:00]}  e6 {[%clk 0:02:58]} 3. e3 {[%clk 0:03:00]}  Nf6 {[%clk 0:02:58]} 4. b3 {[%clk 0:03:00]}  c5 {[%clk 0:02:59]} 5. Bb2 {[%clk 0:02:59]}  Nc6 {[%clk 0:02:59]} 6. cxd5 {[%clk 0:02:58]}  exd5 {[%clk 0:02:59]} 7. Be2 {[%clk 0:02:58]}  Bg4 {[%clk 0:02:56]} 8. O-O {[%clk 0:02:56]}  Be7 {[%clk 0:02:56]} 9. d4 {[%clk 0:02:56]}  O-O {[%clk 0:02:56]} 10. dxc5 {[%clk 0:02:56]}  Bxc5 {[%clk 0:02:53]} 11. Nc3 {[%clk 0:02:56]}  Re8 {[%clk 0:02:39]} 12. Rc1 {[%clk 0:02:50]}  Be7 {[%clk 0:02:38]} 13. h3 {[%clk 0:02:48]}  Bh5 {[%clk 0:02:37]} 14. Re1 {[%clk 0:01:55]}  Rc8 {[%clk 0:02:36]} 15. Nh4 {[%clk 0:01:49]}  Bxe2 {[%clk 0:02:33]} 16. Rxe2 {[%clk 0:01:48]}  d4 {[%clk 0:01:41]} 17. exd4 {[%clk 0:01:37]}  Qxd4 {[%clk 0:01:41]} 18. Nf5 {[%clk 0:01:36]}  Qxd1+ {[%clk 0:01:39]} 19. Rxd1 {[%clk 0:01:36]}  Bf8 {[%clk 0:01:33]} 20. Rxe8 {[%clk 0:01:24]}  Rxe8 {[%clk 0:01:34]} 21. Nb5 {[%clk 0:01:21]}  Ne4 {[%clk 0:01:22]} 22. Rd7 {[%clk 0:01:03]}  Nc5 {[%clk 0:00:52]} 23. Rc7 {[%clk 0:00:42]}  Re1+ {[%clk 0:00:40]} 24. Kh2 {[%clk 0:00:42]}  Re2 {[%clk 0:00:41]} 25. Ba3 {[%clk 0:00:14]}  Rxf2 {[%clk 0:00:23]} 26. Bxc5 {[%clk 0:00:08]}  Rxf5 {[%clk 0:00:18]} 27. Bxf8 {[%clk 0:00:07]}  Rxb5 {[%clk 0:00:16]} 28. Rc8 {[%clk 0:00:06]}  f6 {[%clk 0:00:13]} 29. Bc5+ {[%clk 0:00:05]}  Kf7 {[%clk 0:00:12]} 30. Bf2 {[%clk 0:00:06]}  Kg6 {[%clk 0:00:11]} 31. Rc7 {[%clk 0:00:07]}  a6 {[%clk 0:00:11]} 32. Bg3 {[%clk 0:00:06]}  Ne5 {[%clk 0:00:11]} 33. Bf2 {[%clk 0:00:06]}  Nd3 {[%clk 0:00:10]} 34. Bg3 {[%clk 0:00:06]}  Nb4 {[%clk 0:00:10]} 35. Bd6 {[%clk 0:00:05]}  Nd5 {[%clk 0:00:09]} 36. Rd7 {[%clk 0:00:05]}  Nb6 {[%clk 0:00:08]} 37. Rxb7 {[%clk 0:00:05]}  Nd5 {[%clk 0:00:06]} 38. Rxb5 {[%clk 0:00:05]}  axb5 {[%clk 0:00:07]} 39. a4 {[%clk 0:00:06]}  bxa4 {[%clk 0:00:06]} 40. bxa4 {[%clk 0:00:07]}  Kf7 {[%clk 0:00:05]} 41. a5 {[%clk 0:00:07]}  Ke6 {[%clk 0:00:04]} 42. Bf8 {[%clk 0:00:05]}  g6 {[%clk 0:00:04]} 43. a6 {[%clk 0:00:05]}  Nc7 {[%clk 0:00:04]} 44. a7 {[%clk 0:00:05]}  Kd7 {[%clk 0:00:03]} 45. Kg3 {[%clk 0:00:05]}  Kc6 {[%clk 0:00:03]} 46. Bg7 {[%clk 0:00:04]}  f5 {[%clk 0:00:02]} 47. Bd4 {[%clk 0:00:04]}  Kb7 {[%clk 0:00:02]} 48. Be3 {[%clk 0:00:03]}  Ne6 {[%clk 0:00:03]} 49. Kf3 {[%clk 0:00:03]}  g5 {[%clk 0:00:03]} 50. g4 {[%clk 0:00:03]}  f4 {[%clk 0:00:02]} 51. Bf2 {[%clk 0:00:03]}  h6 {[%clk 0:00:01]} 52. Ke4 {[%clk 0:00:03]}  Ka8 {[%clk 0:00:01]} 53. Kf5 {[%clk 0:00:04]}  Nc7 {[%clk 0:00:01]} 54. Kg6 {[%clk 0:00:04]}  Nd5 {[%clk 0:00:01]} 55. Kxh6 {[%clk 0:00:05]}  Nc3 {[%clk 0:00:02]} 56. Kxg5 {[%clk 0:00:02]}  Ne4+ {[%clk 0:00:02]} 57. Kxf4 {[%clk 0:00:03]}  Nxf2 {[%clk 0:00:03]} 58. h4 {[%clk 0:00:04]}  Nd3+ {[%clk 0:00:03]} 59. Kf5 {[%clk 0:00:04]}  Kxa7 {[%clk 0:00:02]} 60. h5 {[%clk 0:00:05]}  Nc5 {[%clk 0:00:02]} 61. h6 {[%clk 0:00:06]}  Nd7 {[%clk 0:00:02]} 62. h7 {[%clk 0:00:07]} 1-0


[Site "https://www.chess.com"]